[Event "EYCC Open-U18 2019"]
[Site "Bratislava"]
[Date "2019.08.07"]
[Round "6.31"]
[White "Durica, Adam"]
[Black "Iliaguev, Nisim"]
[Result "0-1"]
[ECO "A36"]
[WhiteElo "1958"]
[BlackElo "2357"]
[Annotator "NA"]
[PlyCount "78"]
[EventDate "2019.08.02"]
[EventType "swiss"]
[EventCountry "SVK"]
[SourceTitle "playchess.com"]
[Source "ChessBase"]
[SourceQuality "1"]
[TimeControl "40/5400+30:1800+30"]

1. c4 {[%emt 0:00:00]} c5 {[%emt 0:00:00]} 2. g3 {[%emt 0:00:00]} g6 {[%emt 0:00:00]} 3. Bg2 {[%emt 0:00:00]} Bg7 {[%emt 0:00:00]} 4. Nc3 {[%emt 0:00:00]} Nc6 {[%emt 0:00:00]} 5. a3 {[%emt 0:00:30]} Nf6 {[%emt 0:01:57]} 6. Rb1 {[%emt 0:00:48]} a5 {[%emt 0:03:55]} 7. e4 {[%emt 0:00:14]} O-O {[%emt 0:04:34]} 8. Nge2 {[%emt 0:00:12]} d6 {[%emt 0:04:44]} 9. d3 {[%emt 0:00:24]} Ne8 {[%emt 0:06:40]} 10. O-O {[%emt 0:00:57]} Nc7 {[%emt 0:00:45]} 11. Be3 {[%emt 0:03:17]} Nd4 {[%emt 0:02:56]} 12. b4 {[%emt 0:01:05]} axb4 {[%emt 0:02:34]} 13. axb4 {[%emt 0:02:02]} Ra3 {[%emt 0:10:26]} 14. Bc1 {[%emt 0:05:29]} Ra7 {[%emt 0:03:59]} 15. b5 {[%emt 0:01:14]} Nce6 {[%emt 0:04:57]} 16. Nd5 {[%emt 0:04:42]} Nxe2+ {[%emt 0:00:58]} 17. Qxe2 {[%emt 0:00:02]} Nd4 {[%emt 0:00:19]} 18. Qd1 {[%emt 0:00:15]} e6 {[%emt 0:00:47]} 19. b6 {[%emt 0:01:34]} Ra2 {[%emt 0:03:23]} 20. Nc7 {[%emt 0:00:12]} Bd7 {[%emt 0:01:56]} 21. Kh1 {[%emt 0:10:49]} Ba4 {[%emt 0:02:19]} 22. Qg4 {[%emt 0:00:32]} h5 {[%emt 0:01:34]} 23. Qg5 {[%emt 0:06:51]} Bf6 {[%emt 0:01:18]} 24. Qe3 {[%emt 0:08:06]} Re2 {[%emt 0:00:05]} 25. Qh6 {[%emt 0:00:11]} Bc2 {[%emt 0:02:57]} 26. Bf3 {[%emt 0:06:28]} Nxf3 {[%emt 0:02:44]} 27. Nxe6 {[%emt 0:00:07]} fxe6 {[%emt 0:00:23]} 28. Qxg6+ {[%emt 0:00:09]} Bg7 {[%emt 0:00:01]} 29. Qxe6+ {[%emt 0:01:42]} Kh8 {[%emt 0:00:56]} 30. Bb2 {[%emt 0:00:10]} Nd4 {[%emt 0:01:00]} 31. Bxd4 {[%emt 0:00:57]} cxd4 {[%emt 0:00:01]} 32. Rb5 {[%emt 0:00:15]} Qe8 {[%emt 0:01:25]} 33. Qh3 {[%emt 0:10:30]} Bxd3 {[%emt 0:00:20]} 34. Rxh5+ {[%emt 0:00:09]} Kg8 {[%emt 0:00:04]} 35. Kg1 {[%emt 0:00:15]} Rfxf2 {[%emt 0:02:36]} 36. Rh8+ {[%emt 0:02:52]} Bxh8 {[%emt 0:00:05]} 37. Qg4+ {[%emt 0:00:05]} Bg7 {[%emt 0:00:16]} 38. Rxf2 {[%emt 0:00:04]} Re1+ {[%emt 0:00:33]} 39. Kg2 {[%emt 0:00:06]} Qxe4+ {[%emt 0:00:16]} 0-1

[Event "EYCC Open-U18 2019"]
[Site "Bratislava"]
[Date "2019.08.07"]
[Round "6.32"]
[White "Oboladze, Luka"]
[Black "Boev, Viktor"]
[Result "1/2-1/2"]
[ECO "A14"]
[WhiteElo "2323"]
[BlackElo "2246"]
[Annotator "NA"]
[PlyCount "55"]
[EventDate "2019.08.02"]
[EventType "swiss"]
[EventCountry "SVK"]
[SourceTitle "playchess.com"]
[Source "ChessBase"]
[SourceQuality "1"]
[TimeControl "40/5400+30:1800+30"]

1. c4 {[%emt 0:00:00]} e6 {[%emt 0:00:00]} 2. Nf3 {[%emt 0:00:00]} d5 {[%emt 0:00:00]} 3. g3 {[%emt 0:00:00]} Nf6 {[%emt 0:00:00]} 4. Bg2 {[%emt 0:00:00]} Be7 {[%emt 0:00:00]} 5. O-O {[%emt 0:00:04]} O-O {[%emt 0:00:00]} 6. d4 {[%emt 0:00:05]} dxc4 {[%emt 0:01:34]} 7. Ne5 {[%emt 0:00:35]} Nc6 {[%emt 0:01:36]} 8. Nxc6 {[%emt 0:00:18]} bxc6 {[%emt 0:00:06]} 9. Na3 {[%emt 0:00:05]} Bxa3 {[%emt 0:04:24]} 10. bxa3 {[%emt 0:00:15]} Rb8 {[%emt 0:00:20]} 11. Qa4 {[%emt 0:00:54]} Qxd4 {[%emt 0:18:31]} 12. Be3 {[%emt 0:00:08]} Qb2 {[%emt 0:00:25]} 13. Qxc4 {[%emt 0:07:19]} e5 {[%emt 0:01:11]} 14. Bxa7 {[%emt 0:08:25]} Be6 {[%emt 0:10:06]} 15. Qxc6 {[%emt 0:08:22]} Rbc8 {[%emt 0:01:16]} 16. Bc5 {[%emt 0:17:17]} Rfd8 {[%emt 0:06:46]} 17. e3 {[%emt 0:13:47]} Rd2 {[%emt 0:00:27]} 18. Bb4 {[%emt 0:11:07]} Rxf2 {[%emt 0:05:16]} 19. Rxf2 {[%emt 0:04:52]} Qxa1+ {[%emt 0:00:06]} 20. Rf1 {[%emt 0:02:04]} Qxa2 {[%emt 0:04:39]} 21. Qc3 {[%emt 0:01:00]} Ng4 {[%emt 0:08:36]} 22. Qd2 {[%emt 0:05:00]} c5 {[%emt 0:08:12]} 23. Qxa2 {[%emt 0:06:32]} Bxa2 {[%emt 0:00:09]} 24. Rc1 {[%emt 0:00:09]} Nxe3 {[%emt 0:00:31]} 25. Bh3 {[%emt 0:00:17]} f5 {[%emt 0:18:16]} 26. Rxc5 {[%emt 0:00:20]} Rxc5 {[%emt 0:00:26]} 27. Bxc5 {[%emt 0:00:04]} Ng4 {[%emt 0:00:06]} 28. Bxg4 1/2-1/2

[Event "EYCC Open-U18 2019"]
[Site "Bratislava"]
[Date "2019.08.07"]
[Round "6.33"]
[White "Martinez Fernandez, Adrian"]
[Black "Pirard, Natan"]
[Result "1-0"]
[ECO "B36"]
[WhiteElo "2311"]
[BlackElo "2153"]
[Annotator "NA"]
[PlyCount "53"]
[EventDate "2019.08.02"]
[EventType "swiss"]
[EventCountry "SVK"]
[SourceTitle "playchess.com"]
[Source "ChessBase"]
[SourceQuality "1"]
[TimeControl "40/5400+30:1800+30"]

1. e4 {[%emt 0:00:00]} c5 {[%emt 0:00:00]} 2. Nf3 {[%emt 0:00:00]} Nc6 {[%emt 0:00:00]} 3. d4 {[%emt 0:00:00]} cxd4 {[%emt 0:00:00]} 4. Nxd4 {[%emt 0:00:00]} g6 {[%emt 0:00:00]} 5. c4 {[%emt 0:00:01]} Nf6 {[%emt 0:00:22]} 6. Nc3 {[%emt 0:00:08]} d6 {[%emt 0:00:11]} 7. Be2 {[%emt 0:00:10]} Nxd4 {[%emt 0:00:21]} 8. Qxd4 {[%emt 0:00:06]} Bg7 {[%emt 0:00:04]} 9. Be3 {[%emt 0:00:09]} O-O {[%emt 0:00:05]} 10. Qd2 {[%emt 0:00:06]} a5 {[%emt 0:01:22]} 11. O-O {[%emt 0:00:51]} a4 {[%emt 0:01:12]} 12. Rad1 {[%emt 0:04:11]} Qa5 {[%emt 0:12:24]} 13. Bd4 {[%emt 0:02:04]} Be6 {[%emt 0:04:29]} 14. f4 {[%emt 0:00:50]} Rfc8 {[%emt 0:04:30]} 15. b3 {[%emt 0:02:09]} axb3 {[%emt 0:07:50]} 16. axb3 {[%emt 0:00:13]} Qb4 {[%emt 0:10:24]} 17. f5 {[%emt 0:06:18]} Bd7 {[%emt 0:01:59]} 18. Bxf6 {[%emt 0:00:16]} Bxf6 {[%emt 0:01:25]} 19. Nd5 {[%emt 0:00:08]} Qxd2 {[%emt 0:03:27]} 20. Nxf6+ {[%emt 0:00:17]} Kg7 {[%emt 0:08:19]} 21. Rxd2 {[%emt 0:02:11]} Kxf6 {[%emt 0:00:48]} 22. fxg6+ {[%emt 0:00:11]} Kxg6 {[%emt 0:00:05]} 23. e5 {[%emt 0:00:29]} Rc6 {[%emt 0:23:58]} 24. Rd3 {[%emt 0:09:49]} Kg7 {[%emt 0:02:29]} 25. Rg3+ {[%emt 0:00:15]} Kf8 {[%emt 0:01:00]} 26. Bh5 {[%emt 0:00:10]} Be6 {[%emt 0:00:51]} 27. Bxf7 {[%emt 0:00:08]} 1-0

[Event "EYCC Open-U18 2019"]
[Site "Bratislava"]
[Date "2019.08.07"]
[Round "6.34"]
[White "Halfhide, Sebastian"]
[Black "Bekasovs, Rihards"]
[Result "0-1"]
[ECO "C00"]
[WhiteElo "2286"]
[BlackElo "2144"]
[Annotator "NA"]
[PlyCount "100"]
[EventDate "2019.08.02"]
[EventType "swiss"]
[EventCountry "SVK"]
[SourceTitle "playchess.com"]
[Source "ChessBase"]
[SourceQuality "1"]
[TimeControl "40/5400+30:1800+30"]

1. e4 {[%emt 0:00:00]} e6 {[%emt 0:00:48]} 2. Qe2 {[%emt 0:01:07]} c5 {[%emt 0:01:04]} 3. Nf3 {[%emt 0:01:56]} Nc6 {[%emt 0:00:28]} 4. g3 {[%emt 0:02:55]} g6 {[%emt 0:04:31]} 5. Bg2 {[%emt 0:07:19]} Bg7 {[%emt 0:00:44]} 6. O-O {[%emt 0:00:54]} d6 {[%emt 0:00:45]} 7. d3 {[%emt 0:08:54]} Nge7 {[%emt 0:00:21]} 8. Nfd2 {[%emt 0:02:22]} O-O {[%emt 0:06:37]} 9. c3 {[%emt 0:04:30]} Rb8 {[%emt 0:02:06]} 10. f4 {[%emt 0:02:31]} Qc7 {[%emt 0:10:13]} 11. Nf3 {[%emt 0:03:10]} b5 {[%emt 0:01:21]} 12. g4 {[%emt 0:13:30]} b4 {[%emt 0:05:37]} 13. c4 {[%emt 0:07:28]} f5 {[%emt 0:02:30]} 14. h3 {[%emt 0:03:53]} Nd4 {[%emt 0:09:54]} 15. Nxd4 {[%emt 0:03:08]} Bxd4+ {[%emt 0:00:01]} 16. Kh1 {[%emt 0:00:50]} Nc6 17. Nd2 {[%emt 0:03:03]} Bg7 {[%emt 0:08:08]} 18. Nf3 {[%emt 0:01:19]} Bd7 {[%emt 0:02:40]} 19. Be3 {[%emt 0:03:46]} Rbe8 {[%emt 0:05:05]} 20. Qd2 e5 {[%emt 0:03:44]} 21. exf5 {[%emt 0:05:18]} gxf5 {[%emt 0:02:03]} 22. Ng5 {[%emt 0:02:32]} Ne7 {[%emt 0:03:09]} 23. fxe5 {[%emt 0:03:56]} Bxe5 {[%emt 0:02:23]} 24. Bf4 {[%emt 0:07:32]} Bxf4 {[%emt 0:04:34]} 25. Qxf4 {[%emt 0:01:38]} Ng6 {[%emt 0:00:13]} 26. Bd5+ Kg7 {[%emt 0:04:16]} 27. Qd2 {[%emt 0:02:32]} fxg4 {[%emt 0:00:57]} 28. Nf7 Bc6 29. Qh6+ {[%emt 0:02:28]} Kg8 {[%emt 0:00:57]} 30. Ng5+ {[%emt 0:01:24]} Bxd5+ {[%emt 0:00:09]} 31. cxd5 {[%emt 0:00:00]} Qb7 32. Kg1 gxh3 {[%emt 0:05:40]} 33. Qxh3 {[%emt 0:02:43]} Qg7 {[%emt 0:05:56]} 34. Kh1 {[%emt 0:01:14]} Rf4 {[%emt 0:04:19]} 35. Ne6 {[%emt 0:01:12]} Rxf1+ {[%emt 0:00:44]} 36. Rxf1 {[%emt 0:00:17]} Qe7 {[%emt 0:02:59]} 37. Rg1 {[%emt 0:00:46]} Qf6 {[%emt 0:01:46]} 38. Ng5 {[%emt 0:01:15]} Re7 {[%emt 0:01:09]} 39. Ne4 {[%emt 0:01:20]} Qe5 {[%emt 0:01:03]} 40. Qc8+ {[%emt 0:00:00]} Kg7 {[%emt 0:00:00]} 41. Rf1 {[%emt 0:12:54]} Qxd5 {[%emt 0:06:53]} 42. Qa6 {[%emt 0:04:42]} Qh5+ {[%emt 0:02:21]} 43. Kg1 {[%emt 0:00:37]} Qg4+ {[%emt 0:02:58]} 44. Kh2 {[%emt 0:01:14]} Qh4+ {[%emt 0:08:37]} 45. Kg1 {[%emt 0:00:48]} Qg4+ {[%emt 0:02:24]} 46. Kh2 {[%emt 0:00:56]} Nh4 {[%emt 0:01:43]} 47. Rf2 {[%emt 0:01:33]} Nf3+ {[%emt 0:00:27]} 48. Rxf3 {[%emt 0:00:15]} Qxf3 {[%emt 0:00:03]} 49. Qxd6 {[%emt 0:00:28]} Qh5+ {[%emt 0:00:19]} 50. Kg3 {[%emt 0:00:38]} Qe5+ {[%emt 0:00:08]} 0-1

[Event "EYCC Open-U18 2019"]
[Site "Bratislava"]
[Date "2019.08.07"]
[Round "6.35"]
[White "Gray, Euan"]
[Black "Jakab, Bela"]
[Result "1/2-1/2"]
[ECO "D25"]
[WhiteElo "2004"]
[BlackElo "2278"]
[Annotator "NA"]
[PlyCount "86"]
[EventDate "2019.08.02"]
[EventType "swiss"]
[EventCountry "SVK"]
[SourceTitle "playchess.com"]
[Source "ChessBase"]
[SourceQuality "1"]
[TimeControl "40/5400+30:1800+30"]

1. d4 {[%emt 0:00:00]} d5 {[%emt 0:00:00]} 2. c4 {[%emt 0:00:00]} dxc4 {[%emt 0:00:00]} 3. Nf3 {[%emt 0:00:00]} Nf6 {[%emt 0:00:18]} 4. e3 {[%emt 0:00:21]} c5 {[%emt 0:00:12]} 5. Bxc4 {[%emt 0:00:38]} cxd4 {[%emt 0:00:27]} 6. exd4 {[%emt 0:00:33]} e6 {[%emt 0:00:35]} 7. O-O {[%emt 0:01:12]} Be7 {[%emt 0:00:39]} 8. Qe2 {[%emt 0:02:00]} O-O {[%emt 0:00:34]} 9. Nc3 {[%emt 0:00:12]} Nc6 {[%emt 0:00:59]} 10. Rd1 {[%emt 0:00:26]} Nb4 {[%emt 0:07:32]} 11. Ne5 {[%emt 0:04:47]} a6 {[%emt 0:02:16]} 12. Bb3 {[%emt 0:09:45]} Bd7 {[%emt 0:03:29]} 13. Bf4 {[%emt 0:10:51]} Nbd5 {[%emt 0:04:33]} 14. Nxd5 {[%emt 0:11:52]} Nxd5 {[%emt 0:00:12]} 15. Bxd5 {[%emt 0:00:10]} exd5 {[%emt 0:00:05]} 16. Nxd7 {[%emt 0:02:38]} Qxd7 {[%emt 0:00:06]} 17. Rac1 {[%emt 0:00:17]} Rac8 {[%emt 0:01:42]} 18. Re1 {[%emt 0:16:49]} Bf6 {[%emt 0:04:26]} 19. Be3 {[%emt 0:05:18]} h6 {[%emt 0:05:17]} 20. b3 {[%emt 0:01:01]} Qd6 {[%emt 0:01:13]} 21. Qg4 {[%emt 0:04:41]} Qe6 {[%emt 0:03:59]} 22. Qxe6 {[%emt 0:02:34]} fxe6 {[%emt 0:00:18]} 23. Red1 {[%emt 0:00:18]} Kf7 {[%emt 0:00:56]} 24. Kf1 {[%emt 0:00:47]} Be7 {[%emt 0:00:41]} 25. Rxc8 {[%emt 0:01:03]} Rxc8 {[%emt 0:00:06]} 26. Rc1 {[%emt 0:00:04]} Rc6 {[%emt 0:03:00]} 27. Ke2 {[%emt 0:01:21]} Ba3 {[%emt 0:01:49]} 28. Rxc6 {[%emt 0:00:08]} bxc6 {[%emt 0:00:03]} 29. Kd3 {[%emt 0:01:21]} Bd6 {[%emt 0:00:09]} 30. h3 {[%emt 0:00:12]} g5 {[%emt 0:04:50]} 31. h4 {[%emt 0:02:57]} gxh4 {[%emt 0:03:56]} 32. Bxh6 {[%emt 0:00:07]} Kg6 {[%emt 0:00:04]} 33. Bd2 {[%emt 0:00:52]} Kf5 {[%emt 0:00:07]} 34. f3 {[%emt 0:00:14]} Be7 {[%emt 0:03:11]} 35. Be3 {[%emt 0:06:07]} Bd6 {[%emt 0:06:53]} 36. Bf2 {[%emt 0:01:04]} Kg5 {[%emt 0:00:13]} 37. Be3+ {[%emt 0:00:53]} Kh5 {[%emt 0:00:15]} 38. Bf2 {[%emt 0:01:35]} Bb4 {[%emt 0:02:07]} 39. Ke3 {[%emt 0:00:52]} Kg5 {[%emt 0:13:58]} 40. Kd3 {[%emt 0:00:00]} Bd6 {[%emt 0:00:00]} 41. Be3+ {[%emt 0:03:29]} Kh5 {[%emt 0:01:23]} 42. Bf2 {[%emt 0:01:56]} Kg5 {[%emt 0:00:15]} 43. Be3+ {[%emt 0:00:06]} Kh5 {[%emt 0:00:03] Ke4} 1/2-1/2

[Event "EYCC Open-U18 2019"]
[Site "Bratislava"]
[Date "2019.08.07"]
[Round "6.36"]
[White "Omorjan, Dejan"]
[Black "Polczyk, Mikolaj"]
[Result "1-0"]
[ECO "D37"]
[WhiteElo "2317"]
[BlackElo "2111"]
[Annotator "NA"]
[PlyCount "127"]
[EventDate "2019.08.02"]
[EventType "swiss"]
[EventCountry "SVK"]
[SourceTitle "playchess.com"]
[Source "ChessBase"]
[SourceQuality "1"]
[TimeControl "40/5400+30:1800+30"]

1. Nf3 {[%emt 0:00:00]} d5 {[%emt 0:00:00]} 2. d4 {[%emt 0:00:08]} Nf6 {[%emt 0:00:58]} 3. c4 {[%emt 0:00:11]} e6 {[%emt 0:00:05]} 4. Nc3 {[%emt 0:00:14]} dxc4 {[%emt 0:00:08]} 5. e3 {[%emt 0:01:40]} a6 {[%emt 0:00:05]} 6. a4 {[%emt 0:00:27]} c5 {[%emt 0:01:29]} 7. Bxc4 {[%emt 0:00:10]} Nc6 {[%emt 0:04:28]} 8. O-O {[%emt 0:00:10]} Be7 {[%emt 0:03:18]} 9. Qe2 {[%emt 0:00:51]} cxd4 {[%emt 0:00:53]} 10. Rd1 {[%emt 0:05:46]} e5 {[%emt 0:02:25]} 11. exd4 {[%emt 0:05:27]} exd4 {[%emt 0:00:17]} 12. Nxd4 {[%emt 0:13:51]} Nxd4 {[%emt 0:00:06]} 13. Qe5 {[%emt 0:02:02]} Qd6 {[%emt 0:00:35]} 14. Qxd6 {[%emt 0:01:53]} Bxd6 {[%emt 0:00:10]} 15. Rxd4 {[%emt 0:00:07]} Bc5 {[%emt 0:00:47]} 16. Rd1 {[%emt 0:02:14]} O-O {[%emt 0:00:47]} 17. h3 {[%emt 0:02:40]} h6 {[%emt 0:04:18]} 18. Bf4 {[%emt 0:03:12]} Bf5 {[%emt 0:04:36]} 19. Nd5 {[%emt 0:05:19]} Ne4 {[%emt 0:01:39]} 20. Be3 {[%emt 0:04:56]} Rae8 {[%emt 0:25:05]} 21. Bd3 {[%emt 0:09:08]} Bxe3 {[%emt 0:02:41]} 22. Nxe3 {[%emt 0:00:31]} Bg6 {[%emt 0:03:52]} 23. Rac1 {[%emt 0:01:55]} Rd8 {[%emt 0:01:07]} 24. Bc4 {[%emt 0:04:31]} Nf6 {[%emt 0:06:49]} 25. f3 {[%emt 0:03:51]} Rxd1+ {[%emt 0:12:51]} 26. Rxd1 {[%emt 0:00:08]} b5 {[%emt 0:02:15]} 27. axb5 {[%emt 0:01:11]} axb5 {[%emt 0:00:07]} 28. Bf1 {[%emt 0:02:00]} b4 {[%emt 0:01:43]} 29. Rd4 {[%emt 0:02:18]} Rb8 {[%emt 0:04:40]} 30. b3 {[%emt 0:02:44]} Kf8 {[%emt 0:01:05]} 31. Kf2 {[%emt 0:02:19]} Ke7 {[%emt 0:01:05]} 32. g4 {[%emt 0:01:11]} Bb1 {[%emt 0:01:59]} 33. Rd1 {[%emt 0:03:27]} Bh7 {[%emt 0:01:12]} 34. Rd4 {[%emt 0:02:16]} Bb1 {[%emt 0:00:50]} 35. h4 {[%emt 0:02:09]} g5 {[%emt 0:00:12]} 36. h5 {[%emt 0:01:43]} Bh7 {[%emt 0:01:23]} 37. Bd3 {[%emt 0:05:21]} Bxd3 {[%emt 0:00:54]} 38. Rxd3 {[%emt 0:00:01]} Ke6 {[%emt 0:00:12]} 39. Nf5 {[%emt 0:01:22]} Ne8 {[%emt 0:00:21]} 40. Ke3 {[%emt 0:00:00]} Ke5 {[%emt 0:00:00]} 41. Nxh6 {[%emt 0:10:37]} Nd6 {[%emt 0:03:52]} 42. Rxd6 {[%emt 0:01:11]} Kxd6 {[%emt 0:00:06]} 43. Nxf7+ {[%emt 0:00:07]} Ke7 {[%emt 0:01:00]} 44. Nxg5 {[%emt 0:00:07]} Rc8 {[%emt 0:00:23]} 45. Ne4 {[%emt 0:01:07]} Rc1 {[%emt 0:00:31]} 46. g5 {[%emt 0:10:20]} Rb1 {[%emt 0:00:33]} 47. Nd2 {[%emt 0:08:11]} Rh1 {[%emt 0:03:03]} 48. h6 {[%emt 0:00:43]} Kf7 {[%emt 0:00:53]} 49. f4 {[%emt 0:02:33]} Kg6 {[%emt 0:00:34]} 50. Nf3 {[%emt 0:01:15]} Kf5 {[%emt 0:01:21]} 51. Nd4+ {[%emt 0:01:46]} Kg6 {[%emt 0:02:28]} 52. Ke4 {[%emt 0:00:37]} Re1+ {[%emt 0:00:54]} 53. Kd5 {[%emt 0:00:20]} Rf1 {[%emt 0:02:58]} 54. Ne6 {[%emt 0:01:23]} Re1 {[%emt 0:02:27]} 55. Nf8+ {[%emt 0:01:40]} Kf7 {[%emt 0:00:31]} 56. Nd7 {[%emt 0:01:11]} Rd1+ {[%emt 0:03:55]} 57. Kc6 {[%emt 0:00:05]} Kg6 {[%emt 0:06:59]} 58. Ne5+ {[%emt 0:01:51]} Kh7 {[%emt 0:00:06]} 59. f5 {[%emt 0:01:53]} Rf1 {[%emt 0:02:06]} 60. f6 {[%emt 0:00:11]} Rf5 {[%emt 0:00:11]} 61. f7 {[%emt 0:00:34]} Rf1 {[%emt 0:01:43]} 62. Kd6 {[%emt 0:00:15]} Rf2 {[%emt 0:00:06]} 63. Ke7 {[%emt 0:00:19]} Rf1 {[%emt 0:00:03]} 64. g6+ {[%emt 0:00:21]} 1-0

[Event "EYCC Open-U18 2019"]
[Site "Bratislava"]
[Date "2019.08.07"]
[Round "6.37"]
[White "Golikov, Daniil"]
[Black "Varga, Lukas"]
[Result "1-0"]
[ECO "E20"]
[WhiteElo "2257"]
[BlackElo "2046"]
[Annotator "NA"]
[PlyCount "75"]
[EventDate "2019.08.02"]
[EventType "swiss"]
[EventCountry "SVK"]
[SourceTitle "playchess.com"]
[Source "ChessBase"]
[SourceQuality "1"]
[TimeControl "40/5400+30:1800+30"]

1. d4 {[%emt 0:00:00]} Nf6 {[%emt 0:02:27]} 2. c4 {[%emt 0:00:00]} e6 {[%emt 0:00:32]} 3. Nc3 {[%emt 0:01:04]} Bb4 {[%emt 0:00:06]} 4. f3 {[%emt 0:01:01]} O-O {[%emt 0:02:07]} 5. e4 {[%emt 0:01:18]} b6 {[%emt 0:08:10]} 6. Bd3 {[%emt 0:02:36]} Nc6 {[%emt 0:10:42]} 7. Nge2 {[%emt 0:01:28]} Bxc3+ {[%emt 0:02:32]} 8. Nxc3 {[%emt 0:01:14]} Nh5 {[%emt 0:07:59]} 9. O-O {[%emt 0:07:00]} d6 {[%emt 0:10:22]} 10. f4 {[%emt 0:23:58]} Nf6 {[%emt 0:03:54]} 11. Be2 {[%emt 0:04:50]} d5 {[%emt 0:08:02]} 12. e5 {[%emt 0:02:19]} Ne4 {[%emt 0:00:09]} 13. Be3 {[%emt 0:16:22]} Nxc3 {[%emt 0:02:25]} 14. bxc3 {[%emt 0:00:10]} Ba6 {[%emt 0:01:34]} 15. Qa4 {[%emt 0:02:45]} Na5 {[%emt 0:00:11]} 16. f5 {[%emt 0:03:22]} Qe8 {[%emt 0:07:14]} 17. Qc2 {[%emt 0:00:17]} f6 {[%emt 0:07:37]} 18. exf6 {[%emt 0:04:12]} exf5 {[%emt 0:05:01]} 19. Bg5 {[%emt 0:00:09]} g6 {[%emt 0:05:51]} 20. Bf3 {[%emt 0:00:48]} Bxc4 {[%emt 0:00:30]} 21. Rfe1 {[%emt 0:00:06]} Qc6 {[%emt 0:03:18]} 22. Re7 {[%emt 0:04:58]} Rf7 {[%emt 0:02:22]} 23. Rae1 {[%emt 0:00:01]} Raf8 {[%emt 0:01:17]} 24. g4 {[%emt 0:00:18]} f4 {[%emt 0:03:20]} 25. R7e6 {[%emt 0:02:14]} Qb5 {[%emt 0:00:26]} 26. Bh6 {[%emt 0:00:30]} Bd3 {[%emt 0:02:15]} 27. Qg2 {[%emt 0:00:15]} c6 {[%emt 0:00:40]} 28. Bxf8 {[%emt 0:00:09]} Rxf8 {[%emt 0:00:12]} 29. Qh3 {[%emt 0:00:31]} h5 {[%emt 0:01:41]} 30. gxh5 {[%emt 0:00:05]} Bf5 {[%emt 0:00:04]} 31. Bg4 {[%emt 0:00:04]} Qd3 {[%emt 0:01:09]} 32. Bxf5 {[%emt 0:00:44]} Qxf5 {[%emt 0:00:09]} 33. Qxf5 {[%emt 0:00:25]} gxf5 {[%emt 0:00:06]} 34. Re8 {[%emt 0:00:02]} Rxe8 {[%emt 0:00:32]} 35. Rxe8+ {[%emt 0:00:02]} Kf7 {[%emt 0:00:15]} 36. Ra8 {[%emt 0:00:28]} Kxf6 {[%emt 0:00:12]} 37. Rg8 {[%emt 0:00:06]} Kf7 {[%emt 0:00:27]} 38. Rg5 {[%emt 0:00:05]} 1-0

[Event "EYCC Open-U18 2019"]
[Site "Bratislava"]
[Date "2019.08.07"]
[Round "6.38"]
[White "Castillo Dalmau, Albert"]
[Black "Rodriguez Izquierdo, Luis"]
[Result "1/2-1/2"]
[ECO "A20"]
[WhiteElo "2252"]
[BlackElo "2007"]
[Annotator "NA"]
[PlyCount "135"]
[EventDate "2019.08.02"]
[EventType "swiss"]
[EventCountry "SVK"]
[SourceTitle "playchess.com"]
[Source "ChessBase"]
[SourceQuality "1"]
[TimeControl "40/5400+30:1800+30"]

1. c4 {[%emt 0:00:00]} e5 {[%emt 0:00:00]} 2. g3 {[%emt 0:00:00]} Nf6 {[%emt 0:00:00]} 3. Bg2 {[%emt 0:00:00]} d5 {[%emt 0:00:00]} 4. cxd5 {[%emt 0:00:00]} Nxd5 {[%emt 0:00:08]} 5. Nf3 {[%emt 0:00:00]} Nc6 {[%emt 0:01:01]} 6. O-O {[%emt 0:00:06]} Be7 {[%emt 0:03:45]} 7. d4 {[%emt 0:00:19]} exd4 {[%emt 0:06:06]} 8. Nxd4 {[%emt 0:00:07]} Nxd4 {[%emt 0:02:26]} 9. Qxd4 {[%emt 0:00:07]} Nf6 {[%emt 0:00:06]} 10. Qa4+ {[%emt 0:00:34]} c6 {[%emt 0:03:53]} 11. Rd1 {[%emt 0:01:38]} Bd7 {[%emt 0:01:03]} 12. Nc3 {[%emt 0:01:51]} O-O {[%emt 0:02:58]} 13. e4 {[%emt 0:01:39]} Qc8 {[%emt 0:06:51]} 14. Bf4 {[%emt 0:07:34]} Be6 {[%emt 0:02:16]} 15. Rac1 {[%emt 0:10:15]} Qe8 {[%emt 0:03:02]} 16. h3 {[%emt 0:40:04]} Nd7 {[%emt 0:00:58]} 17. Be3 {[%emt 0:00:42]} Bc5 {[%emt 0:08:30]} 18. Bxc5 {[%emt 0:00:48]} Nxc5 {[%emt 0:00:08]} 19. Qa3 {[%emt 0:02:59]} Nd7 {[%emt 0:05:21]} 20. f4 {[%emt 0:00:13]} f6 {[%emt 0:00:24]} 21. Kh2 {[%emt 0:01:07]} Nb6 {[%emt 0:00:47]} 22. b3 {[%emt 0:02:45]} Kh8 {[%emt 0:03:52]} 23. Ne2 {[%emt 0:00:20]} f5 {[%emt 0:05:07]} 24. e5 {[%emt 0:04:34]} Bd5 {[%emt 0:00:29]} 25. Bxd5 {[%emt 0:00:57]} Nxd5 {[%emt 0:00:07]} 26. Nc3 {[%emt 0:00:23]} Qh5 {[%emt 0:04:24]} 27. Rd2 {[%emt 0:07:00]} Nxf4 {[%emt 0:02:22]} 28. gxf4 {[%emt 0:00:32]} Qf3 {[%emt 0:00:22]} 29. Qb4 {[%emt 0:01:09]} Rad8 {[%emt 0:15:06]} 30. Rcd1 {[%emt 0:01:24]} a5 {[%emt 0:00:18]} 31. Qc4 {[%emt 0:01:56]} b5 {[%emt 0:00:05]} 32. Qe2 {[%emt 0:03:34]} Qxf4+ {[%emt 0:00:29]} 33. Kh1 {[%emt 0:00:14]} Rde8 {[%emt 0:00:22]} 34. e6 {[%emt 0:00:44]} Qh6 {[%emt 0:01:57]} 35. Qf3 {[%emt 0:03:10]} Rxe6 {[%emt 0:02:34]} 36. Rd8 {[%emt 0:00:20]} Ree8 {[%emt 0:00:03]} 37. Rxe8 {[%emt 0:00:38]} Rxe8 {[%emt 0:00:05]} 38. Qxf5 {[%emt 0:01:20]} Qe3 {[%emt 0:00:05]} 39. Rf1 {[%emt 0:00:59]} h6 {[%emt 0:00:33]} 40. Qf3 {[%emt 0:00:00]} Qxf3+ {[%emt 0:00:00]} 41. Rxf3 {[%emt 0:00:13]} b4 {[%emt 0:08:17]} 42. Na4 {[%emt 0:00:33]} Re2 {[%emt 0:01:00]} 43. Rf8+ {[%emt 0:06:23]} Kh7 {[%emt 0:00:06]} 44. Ra8 {[%emt 0:00:04]} Rxa2 {[%emt 0:00:08]} 45. Rxa5 {[%emt 0:00:02]} Ra3 {[%emt 0:01:22]} 46. Ra6 {[%emt 0:14:37]} Rxb3 {[%emt 0:00:13]} 47. Rb6 {[%emt 0:00:16]} Rxh3+ {[%emt 0:01:12]} 48. Kg2 {[%emt 0:00:01]} Rh4 {[%emt 0:00:14]} 49. Rxc6 {[%emt 0:03:19]} b3 {[%emt 0:00:21]} 50. Nc3 {[%emt 0:02:16]} Rg4+ {[%emt 0:02:22]} 51. Kf2 {[%emt 0:01:41]} Rg6 {[%emt 0:00:07]} 52. Rc5 {[%emt 0:00:39]} Rb6 {[%emt 0:00:05]} 53. Nb1 {[%emt 0:01:08]} b2 {[%emt 0:00:22]} 54. Rc3 {[%emt 0:00:23]} g5 {[%emt 0:00:10]} 55. Kg3 {[%emt 0:01:14]} Kg6 {[%emt 0:00:09]} 56. Rc5 {[%emt 0:00:20]} h5 {[%emt 0:00:08]} 57. Kg2 {[%emt 0:00:03]} g4 {[%emt 0:01:10]} 58. Kh2 {[%emt 0:00:29]} h4 {[%emt 0:01:53]} 59. Kg2 {[%emt 0:00:05]} Rb3 {[%emt 0:07:19]} 60. Kh2 {[%emt 0:01:00]} h3 {[%emt 0:00:18]} 61. Re5 {[%emt 0:02:44]} Kf6 {[%emt 0:03:55]} 62. Rc5 {[%emt 0:01:14]} Re3 {[%emt 0:02:03]} 63. Rc2 {[%emt 0:00:20]} Kg5 {[%emt 0:00:02]} 64. Rxb2 {[%emt 0:00:23]} Kh4 {[%emt 0:00:06]} 65. Rb4 {[%emt 0:01:01]} Re2+ {[%emt 0:00:14]} 66. Kh1 {[%emt 0:00:08]} h2 {[%emt 0:08:03]} 67. Nc3 {[%emt 0:01:26]} Rc2 {[%emt 0:00:31]} 68. Ne2 1/2-1/2